fUST/lending_fUST_20250522
["ID","MTS","AMOUNT","RATE_DAILY","PERIOD"]
[361935933,1747900243080,-430.0,0.00022739,2]
[361935934,1747900243089,-709.78,0.00022739,2]
[361935935,1747900243099,-2351.5,0.00022739,2]
[361935936,1747900243109,-430.0,0.00022739,2]
[361935937,1747900243119,-430.0,0.00022739,2]
[361935938,1747900243129,-1683.57,0.00022739,2]
[361935939,1747900243138,-430.0,0.00022739,2]
[361935940,1747900243149,-430.0,0.00022739,2]
[361935941,1747900243159,-430.0,0.00022739,2]
[361935942,1747900243169,-430.0,0.00022739,2]
[361935943,1747900243178,-430.0,0.00022739,2]
[361935944,1747900243187,-430.0,0.00022739,2]
[361935945,1747900243197,-430.0,0.00022739,2]
[361935946,1747900243206,-430.0,0.00022739,2]
[361935947,1747900243215,-430.0,0.00022739,2]
[361935948,1747900243226,-656.37,0.00022739,2]
[361935949,1747900243235,-430.0,0.00022739,2]
[361935950,1747900243245,-430.0,0.00022739,2]
[361935951,1747900243255,-455.09,0.00022739,2]
[361935952,1747900243264,-430.0,0.00022739,2]
[361935953,1747900243274,-430.0,0.00022739,2]
[361935954,1747900243283,-430.0,0.00022739,2]
[361935956,1747900243293,-520.23179445,0.00022739,2]
[361935957,1747900243302,-430.0,0.00022739,2]
[361935958,1747900243311,-430.0,0.00022739,2]
[361935960,1747900243320,-430.0,0.00022739,2]
[361935961,1747900243330,-1026.66,0.00022739,2]
[361935962,1747900243339,-430.0,0.00022739,2]
[361935964,1747900243348,-430.0,0.00022739,2]
[361935966,1747900243358,-430.0,0.00022739,2]
[361935968,1747900243367,-1459.05,0.00022739,2]
[361935969,1747900243377,-430.0,0.00022739,2]
[361935971,1747900243386,-430.0,0.00022739,2]
[361935973,1747900243395,-430.0,0.00022739,2]
[361935974,1747900243406,-430.0,0.00022739,2]
[361935975,1747900243416,-430.0,0.00022739,2]
[361935976,1747900243425,-430.0,0.00022739,2]
[361935977,1747900243435,-430.0,0.00022739,2]
[361935978,1747900243444,-430.0,0.00022739,2]
[361935979,1747900243453,-430.0,0.00022739,2]
[361935980,1747900243463,-430.0,0.00022739,2]
[361935981,1747900243473,-430.0,0.00022739,2]
[361935982,1747900243483,-430.0,0.00022739,2]
[361935983,1747900243492,-430.0,0.00022739,2]
[361935984,1747900243501,-430.0,0.00022739,2]
[361935985,1747900243511,-430.0,0.00022739,2]
[361935986,1747900243520,-430.0,0.00022739,2]
[361935987,1747900243530,-430.0,0.00022739,2]
[361935989,1747900243542,-430.0,0.00022739,2]
[361935990,1747900243551,-430.0,0.00022739,2]
[361935992,1747900243561,-430.0,0.00022739,2]
[361935994,1747900243571,-430.0,0.00022739,2]
[361935995,1747900243582,-430.0,0.00022739,2]
[361935996,1747900243593,-952.11,0.00022739,2]
[361935998,1747900243603,-1030.48,0.00022739,2]
[361935999,1747900243613,-430.0,0.00022739,2]
[361936000,1747900243623,-430.0,0.00022739,2]
[361936001,1747900243633,-430.0,0.00022739,2]
[361936002,1747900243643,-430.0,0.00022739,2]
[361936003,1747900243653,-430.0,0.00022739,2]
[361936004,1747900243663,-430.0,0.00022739,2]
[361936005,1747900243672,-447.97,0.00022739,2]
[361936006,1747900243682,-430.0,0.00022739,2]
[361936007,1747900243692,-430.0,0.00022739,2]
[361936008,1747900243702,-430.0,0.00022739,2]
[361936009,1747900243712,-430.0,0.00022739,2]
[361936010,1747900243723,-253.71572896,0.00022739,2]
[361936011,1747900243732,-438.79683031,0.00022739,2]
[361936012,1747900243742,-430.0,0.00022739,2]
[361936013,1747900243751,-430.0,0.00022739,2]
[361936014,1747900243762,-965.69,0.00022739,2]
[361936015,1747900243772,-430.0,0.00022739,2]
[361936016,1747900243781,-2698.45,0.00022739,2]
[361936017,1747900243791,-430.0,0.00022739,2]
[361936018,1747900243800,-544.73,0.00022739,2]
[361936020,1747900243810,-430.0,0.00022739,2]
[361936022,1747900243819,-617.05,0.00022739,2]
[361936025,1747900243828,-430.0,0.00022739,2]
[361936042,1747900243933,-430.0,0.00022739,2]
[361936043,1747900243943,-430.0,0.00022739,2]
[361936044,1747900243953,-430.0,0.00022739,2]
[361936045,1747900243963,-430.0,0.00022739,2]
[361936046,1747900243974,-430.0,0.00022739,2]
[361936047,1747900243984,-430.0,0.00022739,2]
[361936048,1747900243994,-430.0,0.00022739,2]
[361936049,1747900244004,-1494.51,0.00022739,2]
[361936050,1747900244014,-504.34,0.00022739,2]
[361936052,1747900244023,-430.0,0.00022739,2]
[361936053,1747900244033,-538.94,0.00022739,2]
[361936054,1747900244042,-1340.14772692,0.00022866,8]
[361936055,1747900244052,-670.5072088,0.00022991,2]
[361936056,1747900244061,-1000.0,0.00023,23]
[361936057,1747900244071,-1340.14772692,0.00023003,8]
[361936058,1747900244081,-430.0,0.00023012,2]
[361936059,1747900244092,-2143.07,0.00023012,2]
[361936060,1747900244103,-879.06,0.00023012,2]
[361936061,1747900244112,-430.0,0.00023012,2]
[361936062,1747900244121,-464.82,0.00023013,2]
[361936063,1747900244130,-430.0,0.00023013,2]
[361936064,1747900244140,-430.0,0.00023013,2]
[361936065,1747900244149,-430.0,0.00023013,2]
[361936066,1747900244159,-430.0,0.00023013,2]
[361936067,1747900244169,-533.08,0.00023013,2]
[361936068,1747900244180,-430.0,0.00023013,2]
[361936069,1747900244189,-430.0,0.00023013,2]
[361936070,1747900244199,-430.0,0.00023013,2]
[361936071,1747900244208,-430.0,0.00023013,2]
[361936072,1747900244217,-430.0,0.00023013,2]
[361936073,1747900244227,-430.0,0.00023013,2]
[361936074,1747900244237,-430.0,0.00023013,2]
[361936075,1747900244246,-500.79,0.00023013,2]
[361936076,1747900244256,-430.0,0.00023013,2]
[361936077,1747900244266,-430.0,0.00023013,2]
[361936078,1747900244275,-430.0,0.00023013,2]
[361936079,1747900244285,-433.35,0.00023013,2]
[361936080,1747900244295,-430.0,0.00023013,2]
[361936081,1747900244305,-499.4700449,0.00023013,2]
[361936082,1747900244316,-430.0,0.00023013,2]
[361936083,1747900244326,-430.0,0.00023013,2]
[361936084,1747900244335,-430.0,0.00023013,2]
[361936085,1747900244345,-430.0,0.00023013,2]
[361936086,1747900244354,-430.0,0.00023013,2]
[361936087,1747900244364,-430.0,0.00023013,2]
[361936088,1747900244373,-430.0,0.00023013,2]
[361936089,1747900244383,-430.0,0.00023013,2]
[361936090,1747900244392,-586.98,0.00023013,2]
[361936091,1747900244402,-255.91,0.00023013,2]
[361936092,1747900244411,-430.0,0.00023013,2]
[361936093,1747900244420,-430.0,0.00023013,2]
[361936094,1747900244430,-430.0,0.00023013,2]
[361936095,1747900244439,-325.28808116,0.00023013,2]
[361936096,1747900244449,-515.34,0.00023013,2]
[361936097,1747900244459,-430.0,0.00023013,2]
[361936098,1747900244470,-258.61,0.00023013,2]
[361936099,1747900244481,-445.48,0.00023013,2]
[361936100,1747900244490,-430.0,0.00023013,2]
[361936101,1747900244500,-430.0,0.00023013,2]
[361936102,1747900244509,-709.78,0.00023013,2]
[361936103,1747900244519,-2351.5,0.00023013,2]
[361936104,1747900244528,-430.0,0.00023013,2]
[361936105,1747900244542,-430.0,0.00023013,2]
[361936106,1747900244551,-1683.57,0.00023013,2]
[361936107,1747900244561,-430.0,0.00023013,2]
[361936108,1747900244570,-430.0,0.00023013,2]
[361936109,1747900244582,-266.59,0.00023013,2]
[361936110,1747900244591,-430.0,0.00023013,2]
[361936111,1747900244600,-430.0,0.00023013,2]
[361936112,1747900244611,-430.0,0.00023013,2]
[361936113,1747900244621,-430.0,0.00023013,2]
[361936114,1747900244630,-430.0,0.00023013,2]
[361936115,1747900244639,-656.37,0.00023013,2]
[361936116,1747900244648,-430.0,0.00023013,2]
[361936117,1747900244658,-430.0,0.00023013,2]
[361936118,1747900244667,-455.09,0.00023013,2]
[361936119,1747900244677,-430.0,0.00023013,2]
[361936120,1747900244691,-430.0,0.00023013,2]
[361936121,1747900244701,-430.0,0.00023013,2]
[361936122,1747900244711,-430.0,0.00023013,2]
[361936123,1747900244724,-430.0,0.00023013,2]
[361936124,1747900244734,-430.0,0.00023013,2]
[361936125,1747900244743,-1026.66,0.00023013,2]
[361936126,1747900244753,-430.0,0.00023013,2]
[361936127,1747900244763,-360.25287067,0.00023013,2]
[361936128,1747900244773,-430.0,0.00023013,2]
[361936129,1747900244782,-1459.05,0.00023013,2]
[361936130,1747900244792,-430.0,0.00023013,2]
[361936131,1747900244802,-430.0,0.00023013,2]
[361936132,1747900244812,-430.0,0.00023013,2]
[361936133,1747900244821,-430.0,0.00023013,2]
[361936134,1747900244830,-430.0,0.00023013,2]
[361936135,1747900244840,-190.76,0.00023013,2]
[361936136,1747900244850,-430.0,0.00023013,2]
[361936137,1747900244860,-430.0,0.00023013,2]
[361936138,1747900244869,-430.0,0.00023013,2]
[361936139,1747900244879,-430.0,0.00023013,2]
[361936140,1747900244888,-430.0,0.00023013,2]
[361936141,1747900244897,-430.0,0.00023013,2]
[361936142,1747900244906,-430.0,0.00023013,2]
[361936143,1747900244915,-430.0,0.00023013,2]
[361936144,1747900244925,-430.0,0.00023013,2]
[361936145,1747900244935,-430.0,0.00023013,2]
[361936146,1747900244945,-430.0,0.00023013,2]
[361936147,1747900244955,-430.0,0.00023013,2]
[361936148,1747900244964,-952.11,0.00023013,2]
[361936149,1747900244975,-1030.48,0.00023013,2]
[361936150,1747900244984,-430.0,0.00023013,2]
[361936151,1747900244994,-430.0,0.00023013,2]
[361936152,1747900245004,-430.0,0.00023013,2]
[361936153,1747900245014,-430.0,0.00023013,2]
[361936154,1747900245023,-430.0,0.00023013,2]
[361936155,1747900245032,-430.0,0.00023013,2]
[361936156,1747900245042,-447.97,0.00023013,2]
[361936157,1747900245052,-430.0,0.00023013,2]
[361936158,1747900245061,-430.0,0.00023013,2]
[361936159,1747900245071,-430.0,0.00023013,2]
[361936160,1747900245081,-430.0,0.00023013,2]
[361936161,1747900245090,-430.0,0.00023013,2]
[361936162,1747900245099,-430.0,0.00023013,2]
[361936163,1747900245108,-965.69,0.00023013,2]
[361936164,1747900245118,-430.0,0.00023013,2]
[361936165,1747900245127,-2698.45,0.00023013,2]
[361936166,1747900245136,-552.94003811,0.00023013,2]
[361936167,1747900245146,-544.73,0.00023013,2]
[361936168,1747900245155,-430.0,0.00023013,2]
[361936169,1747900245165,-617.05,0.00023013,2]
[361936170,1747900245174,-430.0,0.00023013,2]
[361936171,1747900245184,-430.0,0.00023013,2]
[361936172,1747900245194,-430.0,0.00023013,2]
[361936173,1747900245203,-430.0,0.00023013,2]
[361936174,1747900245214,-430.0,0.00023013,2]
[361936175,1747900245223,-1494.51,0.00023013,2]
[361936176,1747900245233,-430.0,0.00023013,2]
[361936177,1747900245243,-538.94,0.00023013,2]
[361936178,1747900245252,-504.34,0.00023013,2]
[361936179,1747900245262,-420.0,0.00023088,2]
[361936180,1747900245359,-1340.14772692,0.00023141,8]
[361936181,1747900245379,-153.0,0.00023178,2]
[361936182,1747900245389,-153.0,0.00023178,2]
[361936183,1747900245398,-153.0,0.00023178,2]
[361936184,1747900245408,-153.0,0.00023178,2]
[361936185,1747900245419,-153.0,0.00023178,2]
[361936186,1747900245428,-153.0,0.00023178,2]
[361936187,1747900245438,-153.0,0.00023178,2]
[361936189,1747900245448,-153.0,0.00023178,2]
[361936191,1747900245458,-595.95659499,0.00023197,2]
[361936193,1747900245468,-250.0,0.00023235,2]
[361936195,1747900245480,-1340.14772692,0.00023279,8]
[361936197,1747900245490,-430.0,0.00023286,2]
[361936198,1747900245499,-2143.07,0.00023286,2]
[361936199,1747900245509,-879.06,0.00023286,2]
[361936200,1747900245518,-430.0,0.00023286,2]
[361936201,1747900245527,-430.0,0.00023287,2]
[361936202,1747900245538,-430.0,0.00023287,2]
[361936203,1747900245549,-438.96,0.00023287,2]
[361936204,1747900245559,-430.0,0.00023287,2]
[361936205,1747900245568,-430.0,0.00023287,2]
[361936206,1747900245577,-430.0,0.00023287,2]
[361936207,1747900245588,-430.0,0.00023287,2]
[361936208,1747900245597,-430.0,0.00023287,2]
[361936209,1747900245607,-500.79,0.00023287,2]
[361936210,1747900245617,-430.0,0.00023287,2]
[361936211,1747900245627,-533.98257197,0.00023287,2]
[361936212,1747900245637,-430.0,0.00023287,2]
[361936213,1747900245646,-433.35,0.00023287,2]
[361936214,1747900245655,-430.0,0.00023287,2]
[361936215,1747900245664,-296.8911377,0.00023287,2]
[361936216,1747900245674,-430.0,0.00023287,2]
[361936217,1747900245683,-430.0,0.00023287,2]
[361936218,1747900245693,-284.86729303,0.00023287,2]
[361936219,1747900245703,-430.0,0.00023287,2]
[361936220,1747900245712,-430.0,0.00023287,2]
[361936221,1747900245723,-586.98,0.00023287,2]
[361936222,1747900245733,-430.0,0.00023287,2]
[361936223,1747900245743,-430.0,0.00023287,2]
[361936225,1747900245752,-515.34,0.00023287,2]
[361936227,1747900245761,-430.0,0.00023287,2]
[361936229,1747900245771,-445.48,0.00023287,2]
[361936230,1747900245780,-4541.05,0.00023287,2]
[361936231,1747900245790,-430.0,0.00023287,2]
[361936232,1747900245799,-709.78,0.00023287,2]
[361936233,1747900245809,-2351.5,0.00023287,2]
[361936234,1747900245818,-430.0,0.00023287,2]
[361936235,1747900245828,-430.0,0.00023287,2]
[361936236,1747900245837,-1683.57,0.00023287,2]
[361936237,1747900245847,-430.0,0.00023287,2]
[361936238,1747900245857,-430.0,0.00023287,2]
[361936239,1747900245866,-163.06617706,0.00023287,2]
[361936240,1747900245876,-430.0,0.00023287,2]
[361936241,1747900245885,-430.0,0.00023287,2]
[361936242,1747900245895,-539.75,0.00023287,2]
[361936243,1747900245905,-430.0,0.00023287,2]
[361936244,1747900245914,-656.37,0.00023287,2]
[361936245,1747900245923,-430.0,0.00023287,2]
[361936246,1747900245933,-430.0,0.00023287,2]
[361936247,1747900245944,-455.09,0.00023287,2]
[361936248,1747900245953,-430.0,0.00023287,2]
[361936249,1747900245963,-430.0,0.00023287,2]
[361936251,1747900245973,-430.0,0.00023287,2]
[361936253,1747900245983,-430.0,0.00023287,2]
[361936256,1747900246001,-430.0,0.00023287,2]
[361936260,1747900246022,-430.0,0.00023287,2]
[361936263,1747900246040,-1026.66,0.00023287,2]
[361936265,1747900246062,-295.40745137,0.00023287,2]
[361936268,1747900246083,-430.0,0.00023287,2]
[361936271,1747900246106,-1459.05,0.00023287,2]
[361936275,1747900246125,-430.0,0.00023287,2]
[361936278,1747900246144,-430.0,0.00023287,2]
[361936280,1747900246164,-430.0,0.00023287,2]
[361936283,1747900246180,-430.0,0.00023287,2]
[361936286,1747900246198,-430.0,0.00023287,2]
[361936289,1747900246218,-430.0,0.00023287,2]
[361936292,1747900246239,-430.0,0.00023287,2]
[361936295,1747900246260,-430.0,0.00023287,2]
[361936297,1747900246273,-430.0,0.00023287,2]
[361936300,1747900246288,-430.0,0.00023287,2]
[361936303,1747900246308,-430.0,0.00023287,2]
[361936306,1747900246323,-430.0,0.00023287,2]
[361936308,1747900246339,-430.0,0.00023287,2]
[361936311,1747900246354,-430.0,0.00023287,2]
[361936314,1747900246368,-430.0,0.00023287,2]
[361936316,1747900246382,-952.11,0.00023287,2]
[361936319,1747900246397,-1030.48,0.00023287,2]
[361936321,1747900246412,-430.0,0.00023287,2]
[361936324,1747900246426,-430.0,0.00023287,2]
[361936327,1747900246441,-430.0,0.00023287,2]
[361936329,1747900246457,-447.97,0.00023287,2]
[361936332,1747900246472,-430.0,0.00023287,2]
[361936334,1747900246487,-430.0,0.00023287,2]
[361936337,1747900246504,-430.0,0.00023287,2]
[361936340,1747900246519,-430.0,0.00023287,2]
[361936342,1747900246534,-420.8,0.00023287,2]
[361936345,1747900246551,-430.0,0.00023287,2]
[361936347,1747900246566,-965.69,0.00023287,2]
[361936350,1747900246582,-430.0,0.00023287,2]
[361936353,1747900246597,-2698.45,0.00023287,2]
[361936355,1747900246613,-544.73,0.00023287,2]
[361936358,1747900246629,-430.0,0.00023287,2]
[361936360,1747900246644,-617.05,0.00023287,2]
[361936363,1747900246659,-430.0,0.00023287,2]
[361936366,1747900246675,-430.0,0.00023287,2]
[361936368,1747900246689,-1494.51,0.00023287,2]
[361936371,1747900246705,-430.0,0.00023287,2]
[361936373,1747900246721,-538.94,0.00023287,2]
[361936376,1747900246737,-504.34,0.00023287,2]
[361936379,1747900246752,-1340.14772692,0.00023417,9]
[361936381,1747900246767,-670.5072088,0.0002344,2]
[361936384,1747900246782,-1520.956994,0.0002351,2]
[361936387,1747900246798,-1340.14772692,0.00023555,9]
[361936389,1747900246814,-430.0,0.0002356,2]
[361936392,1747900246829,-2143.07,0.0002356,2]
[361936395,1747900246844,-879.06,0.0002356,2]
[361936397,1747900246859,-430.0,0.0002356,2]
[361936400,1747900246874,-430.0,0.00023561,2]
[361936403,1747900246890,-430.0,0.00023561,2]
[361936405,1747900246903,-430.0,0.00023561,2]
[361936408,1747900246919,-430.0,0.00023561,2]
[361936410,1747900246934,-430.0,0.00023561,2]
[361936413,1747900246951,-500.79,0.00023561,2]
[361936416,1747900246963,-391.61921207,0.00023561,2]
[361936418,1747900246973,-430.0,0.00023561,2]
[361936420,1747900246982,-433.35,0.00023561,2]
[361936435,1747900246992,-430.0,0.00023561,2]
[361936444,1747900247189,-430.0,0.00023561,2]
[361936446,1747900247199,-380.03,0.00023561,2]
[361936448,1747900247209,-586.98,0.00023561,2]
[361936450,1747900247219,-430.0,0.00023561,2]
[361936452,1747900247231,-430.0,0.00023561,2]
[361936454,1747900247241,-515.34,0.00023561,2]
[361936456,1747900247251,-430.0,0.00023561,2]
[361936458,1747900247261,-445.48,0.00023561,2]
[361936460,1747900247271,-430.0,0.00023561,2]
[361936462,1747900247280,-709.78,0.00023561,2]
[361936464,1747900247290,-2351.5,0.00023561,2]
[361936466,1747900247300,-430.0,0.00023561,2]
[361936468,1747900247310,-1683.57,0.00023561,2]
[361936470,1747900247319,-430.0,0.00023561,2]
[361936472,1747900247329,-430.0,0.00023561,2]
[361936474,1747900247339,-430.0,0.00023561,2]
[361936476,1747900247349,-430.0,0.00023561,2]
[361936478,1747900247359,-656.37,0.00023561,2]
[361936480,1747900247368,-430.0,0.00023561,2]
[361936483,1747900247378,-455.09,0.00023561,2]
[361936485,1747900247388,-430.0,0.00023561,2]
[361936487,1747900247398,-159.58,0.00023561,2]
[361936489,1747900247407,-430.0,0.00023561,2]
[361936491,1747900247418,-430.0,0.00023561,2]
[361936493,1747900247428,-1026.66,0.00023561,2]
[361936495,1747900247438,-430.0,0.00023561,2]
[361936497,1747900247448,-1459.05,0.00023561,2]
[361936499,1747900247458,-430.0,0.00023561,2]
[361936501,1747900247468,-430.0,0.00023561,2]
[361936503,1747900247478,-430.0,0.00023561,2]
[361936505,1747900247487,-430.0,0.00023561,2]
[361936507,1747900247497,-430.0,0.00023561,2]
[361936509,1747900247507,-430.0,0.00023561,2]
[361936511,1747900247516,-430.0,0.00023561,2]
[361936513,1747900247526,-430.0,0.00023561,2]
[361936515,1747900247536,-430.0,0.00023561,2]
[361936517,1747900247550,-430.0,0.00023561,2]
[361936518,1747900247560,-430.0,0.00023561,2]
[361936520,1747900247570,-430.0,0.00023561,2]
[361936522,1747900247580,-430.0,0.00023561,2]
[361936523,1747900247590,-952.11,0.00023561,2]
[361936525,1747900247600,-1030.48,0.00023561,2]
[361936527,1747900247609,-430.0,0.00023561,2]
[361936528,1747900247620,-430.0,0.00023561,2]
[361936530,1747900247630,-430.0,0.00023561,2]
[361936532,1747900247639,-447.97,0.00023561,2]
[361936533,1747900247649,-430.0,0.00023561,2]
[361936535,1747900247659,-430.0,0.00023561,2]
[361936537,1747900247669,-965.69,0.00023561,2]
[361936538,1747900247678,-430.0,0.00023561,2]
[361936540,1747900247687,-2698.45,0.00023561,2]
[361936542,1747900247697,-544.73,0.00023561,2]
[361936543,1747900247706,-430.0,0.00023561,2]
[361936545,1747900247716,-617.05,0.00023561,2]
[361936547,1747900247726,-430.0,0.00023561,2]
[361936548,1747900247736,-1494.51,0.00023561,2]
[361936550,1747900247745,-430.0,0.00023561,2]
[361936552,1747900247755,-538.94,0.00023561,2]
[361936553,1747900247765,-504.34,0.00023561,2]
[361936555,1747900247774,-1340.14772692,0.00023693,9]
[361936557,1747900247784,-1340.14772692,0.00023831,10]
[361936558,1747900247794,-430.0,0.00023834,2]
[361936560,1747900247803,-2143.07,0.00023834,2]
[361936562,1747900247812,-879.06,0.00023834,2]
[361936563,1747900247822,-430.0,0.00023834,2]
[361936565,1747900247831,-430.0,0.00023835,2]
[361936567,1747900247841,-236.71,0.00023835,2]
[361936568,1747900247850,-430.0,0.00023835,2]
[361936570,1747900247859,-430.0,0.00023835,2]
[361936571,1747900247868,-515.55,0.00023835,2]
[361936573,1747900247878,-500.79,0.00023835,2]
[361936575,1747900247887,-430.0,0.00023835,2]
[361936577,1747900247898,-433.35,0.00023835,2]
[361936578,1747900247907,-362.52,0.00023835,2]
[361936580,1747900247916,-586.98,0.00023835,2]
[361936582,1747900247926,-430.0,0.00023835,2]
[361936584,1747900247935,-430.0,0.00023835,2]
[361936585,1747900247944,-515.34,0.00023835,2]
[361936587,1747900247953,-430.0,0.00023835,2]
[361936589,1747900247963,-445.48,0.00023835,2]
[361936590,1747900247972,-430.0,0.00023835,2]
[361936592,1747900247982,-709.78,0.00023835,2]
[361936594,1747900247991,-2351.5,0.00023835,2]
[361936596,1747900248000,-430.0,0.00023835,2]
[361936597,1747900248009,-1683.57,0.00023835,2]
[361936599,1747900248019,-430.0,0.00023835,2]
[361936601,1747900248028,-430.0,0.00023835,2]
[361936602,1747900248037,-430.0,0.00023835,2]
[361936604,1747900248046,-656.37,0.00023835,2]
[361936606,1747900248055,-430.0,0.00023835,2]
[361936608,1747900248065,-455.09,0.00023835,2]
[361936610,1747900248075,-430.0,0.00023835,2]
[361936612,1747900248086,-429.45,0.00023835,2]
[361936613,1747900248096,-1026.66,0.00023835,2]
[361936615,1747900248106,-430.0,0.00023835,2]
[361936617,1747900248115,-1459.05,0.00023835,2]
[361936618,1747900248125,-430.0,0.00023835,2]
[361936620,1747900248135,-430.0,0.00023835,2]
[361936621,1747900248145,-430.0,0.00023835,2]
[361936623,1747900248155,-430.0,0.00023835,2]
[361936625,1747900248165,-430.0,0.00023835,2]
[361936627,1747900248175,-430.0,0.00023835,2]
[361936629,1747900248186,-344.45,0.00023835,2]
[361936630,1747900248195,-430.0,0.00023835,2]
[361936632,1747900248206,-430.0,0.00023835,2]
[361936634,1747900248216,-430.0,0.00023835,2]
[361936636,1747900248227,-430.0,0.00023835,2]
[361936638,1747900248238,-430.0,0.00023835,2]
[361936639,1747900248248,-952.11,0.00023835,2]
[361936641,1747900248258,-1030.48,0.00023835,2]
[361936643,1747900248268,-430.0,0.00023835,2]
[361936645,1747900248278,-430.0,0.00023835,2]
[361936646,1747900248287,-430.0,0.00023835,2]
[361936648,1747900248297,-447.97,0.00023835,2]
[361936650,1747900248306,-430.0,0.00023835,2]
[361936652,1747900248316,-965.69,0.00023835,2]
[361936654,1747900248325,-430.0,0.00023835,2]
[361936655,1747900248335,-2698.45,0.00023835,2]
[361936657,1747900248344,-544.73,0.00023835,2]
[361936659,1747900248354,-430.0,0.00023835,2]
[361936661,1747900248364,-617.05,0.00023835,2]
[361936662,1747900248374,-430.0,0.00023835,2]
[361936664,1747900248384,-1494.51,0.00023835,2]
[361936666,1747900248395,-430.0,0.00023835,2]
[361936668,1747900248405,-538.94,0.00023835,2]
[361936670,1747900248415,-504.34,0.00023835,2]
[361936671,1747900248426,-670.5072088,0.0002389,2]
[361936673,1747900248436,-6352.40001564,0.0002389,2]
[361936675,1747900248446,-157.748237,0.00023904,3]
[361936677,1747900248456,-894.64583333,0.00023904,3]
[361936679,1747900248466,-422.78357425,0.00023904,3]
[361936680,1747900248476,-9819.78789673,0.00023904,3]
[361936682,1747900248486,-1340.14772692,0.00023969,10]
[361936684,1747900248496,-500.0,0.00023973,2]
[361936686,1747900248506,-163.643667,0.00023973,2]
[361936687,1747900248516,-500.0,0.00023973,2]
[361936689,1747900248526,-500.0,0.00023973,2]
[361936691,1747900248540,-500.0,0.00023973,2]
[361936693,1747900248549,-600.0,0.00023973,2]
[361936695,1747900248559,-151.0,0.00023974,2]
[361936696,1747900248569,-215.0738,0.00023974,2]
[361936698,1747900248579,-49751.87769295,0.0002399,7]
[361936712,1747900248741,-5552.06912374,0.0002399,7]
[361936729,1747900248942,-430.0,0.00021917,2]
[361936731,1747900248952,-516.88429869,0.00021917,2]
[361936733,1747900248962,-160.0,0.00022522,2]
[361936735,1747900248971,-863761.43990908,0.0002399,7]
[361936754,1747900249201,-430.0,0.00021917,2]
[361936756,1747900249212,-245.16881193,0.0002399,7]
[361936758,1747900249224,-1112.36303726,0.0002399,7]
[361936787,1747900249568,-430.0,0.00021917,2]
[361936789,1747900249577,-430.0,0.00021917,2]
[361936791,1747900249588,-430.0,0.00022191,2]
[361936792,1747900249597,-430.0,0.00022465,2]
[361936794,1747900249607,-5830.999999,0.0002399,7]
[361938744,1747900672844,168.013267,0.00013699,2]
[361938749,1747900965210,2269.78,0.0002,30]
[361938750,1747901139125,-2922.17202555,0.00020587,2]